Cogmind - Beta 15 @@@ ROGUE MODE // 2025.06.03 @ 23:58:36 Player: 7604 Result: Destroyed by B2-ERL(R) with Subdweller Laser Performance ------------- Evolutions (0) 0 Regions Visited (2) 400 Robots Destroyed (31) 155 Value Destroyed (777) 777 Prototype IDs (2) 40 Alien Tech Used (0) 0 Bonus (0) 0 TOTAL SCORE: 1372 Bonus ------- None Cogmind --------- Core Integrity 0/250 Matter 275/300 Energy 170/200 System Corruption 0% Temperature Cool (6) Movement Treading (480) Ox4 Location -10/Subcaves Parts ------- > --- POWER (1) -------- Subdweller Power Source > --- PROPULSION (2) --- Light Treads > --- UTILITY (2) ------ Huge Storage Unit Core Shielding > --- WEAPON (2) ------- Medium Laser Subdweller Beam Cannon > --- INVENTORY (25) --- Improved Heat Sink Improved Heat Sink Structural Scanner Improved Terrain Scanner Seismic Detector Light Armor Plating Hacking Suite EM Pulse Gun Small Laser Small Laser Assault Rifle Subdweller Machine Gun Hammer Peak State ------------ > --- POWER ------------ Subdweller Power Source > --- PROPULSION ------- Light Treads Light Treads > --- UTILITY ---------- Huge Storage Unit Improved Terrain Scanner > --- WEAPON ----------- Medium Laser Subdweller Beam Cannon > --- INVENTORY -------- Improved Heat Sink Improved Heat Sink Structural Scanner Seismic Detector Core Shielding Light Armor Plating Hacking Suite EM Pulse Gun Small Laser Small Laser Assault Rifle Subdweller Machine Gun Hammer [Rating: 13] Favorites ----------- Power Ion Engine Engine Ion Engine Propulsion Light Treads Treads Light Treads Leg Aluminum Leg Utility Huge Storage Unit Device Seismic Detector Storage Huge Storage Unit Protection Light Armor Plating Weapon Medium Laser Energy Gun Medium Laser Energy Cannon Subdweller Beam Cannon Ballistic Gun Assault Rifle Impact Weapon Hammer Build | -11 -10 -10 ------- Run | Yrd Mat Sub Slots Evolved . | . . . Power . | . . . Propulsion . | . . . Utility . | . . . Weapon . | . . . Parts Attached 19 | 2 10 7 Power 2 | . 1 1 Engine 2 | . 1 1 Core . | . . . Reactor . | . . . Propulsion 4 | . 3 1 Treads 3 | . 2 1 Leg 1 | . 1 . Wheel . | . . . Hover . | . . . Flight . | . . . Utility 8 | 1 4 3 Device 4 | 1 1 2 Storage 1 | . 1 . Processor . | . . . Hackware . | . . . Protection 3 | . 2 1 Artifact . | . . . Weapon 5 | 1 2 2 Energy Gun 2 | . 1 1 Energy Cannon 1 | . . 1 Ballistic Gun 1 | 1 . . Ballistic Cannon . | . . . Launcher . | . . . Special Weapon . | . . . Impact Weapon 1 | . 1 . Slashing Weapon . | . . . Piercing Weapon . | . . . Special Melee Weapon . | . . . Unidentified Prototypes . | . . . Parts Lost 6 | . 1 5 Power 1 | . . 1 Propulsion 2 | . . 2 Utility 2 | . 1 1 Weapon 1 | . . 1 Highest Loss Streak 3 | . 1 3 To Critical Strikes . | . . . Average Backups 11 | 6 11 13 Power . | 1 . . Propulsion . | 3 . . Utility 6 | . 6 7 Weapon 4 | 1 3 5 Tool/Special . | . . . Unused Backups 17 | 7 3 7 Power 3 | 1 2 . Propulsion 4 | 4 . . Utility 4 | 1 . 3 Weapon 6 | 1 1 4 Tool/Special . | . . . Average Slot Usage (%) 99 | . 99 99 Engine 13 | . 14 13 Treads 24 | . 21 27 Leg 3 | . 6 . Device 9 | . 7 13 Storage 14 | . 14 14 Protection 4 | . 6 . Energy Gun 13 | . 13 14 Energy Cannon 5 | . . 13 Ballistic Gun 8 | . 13 . Peak Build Rating 13 | 7 10 13 Average Rating 9 | 6 8 10 On Entrance 7 | 6 7 9 Naked Turns . | . . . Heaviest Build 96 | 13 92 96 Greatest Support 40 | 20 40 40 Greatest Overweight (x) 4 | . 4 4 Average Overweight (x) 1 | . 1 2 Largest Inventory Capacity 25 | 8 25 25 Average Capacity 22 | 8 20 25 Most Carried 15 | 8 14 15 Average Carried 11 | 6 11 13 Final Capacity 25 | 8 25 25 Final Carried 14 | 7 14 13 Class Distribution -------------------- 62% | Mutant 37% | Scavenger-Mutant Dominant Class ---------------- Mutant | -10/Materials Scavenger-Mutant | -10/Subcaves Resources | -11 -10 -10 ----------- Run | Yrd Mat Sub Matter Collected 814 | 255 417 142 Remotely . | . . . Salvage Created 1194 | 140 832 222 Parts 68 | 17 43 8 Haulers Intercepted 2 | . 2 . Recyclers Shooed 1 | . 1 . Parts Field Recycled . | . . . Retrieved Matter . | . . . Parts Self-Destructed 5 | . . 5 Prevented . | . . . Kills | -11 -10 -10 ------- Run | Yrd Mat Sub Combat Hostiles Destroyed 18 | . 13 5 Guns 16 | . 13 3 Cannons 2 | . . 2 Classes Destroyed 9 | 2 5 2 Builder 1 | . 1 . Tunneler 4 | 4 . . Hauler 2 | . 2 . Recycler 2 | 1 1 . Operator 1 | . 1 . Watcher 3 | . 3 . Swarmer 1 | . . 1 Grunt 13 | . 13 . Subdweller 4 | . . 4 Best Kill Streak 3 | 3 3 2 Combat Bots Only 2 | . 2 2 Max Kills in Single Turn 1 | 1 1 1 Gunslinging . | . . . Exploded . | . . . Melee . | . . . Uniques/NPCs Destroyed . | . . . Combat | -11 -10 -10 -------- Run | Yrd Mat Sub Hostile Shots Fired 132 | . 61 71 Missed 42 | . 19 23 Hits 90 | . 42 48 Projectile 90 | . 42 48 Critical Strikes 1 | . . 1 Damage Taken 1160 | . 585 575 Core 254 | . 112 142 Absorbed by Shields . | . . . Redirected to Shielding 19 | . . 19 Regen/Repaired (Parts) 88 | . 88 . Core Remaining (%) 100 | 100 . . Volleys Fired 98 | 13 62 23 Largest 2 | 2 2 2 Hottest 130 | 70 70 130 Shots Fired 191 | 26 123 42 Gun 174 | 26 123 25 Cannon 17 | . . 17 Launcher . | . . . Special . | . . . Kinetic 80 | 13 61 6 Thermal 111 | 13 62 36 Explosive . | . . . Electromagnetic . | . . . Robot Hit Streak 14 | 6 14 10 Robot Miss Streak 3 | 2 2 3 Penetration Max . | . . . Secondary Targets . | . . . Shots Hit Robots 130 | 14 89 27 Core Hits 56 | 7 42 7 Critical Kills . | . . . Critical Parts Destroyed . | . . . Critical Strikes 5 | . 3 2 Burn 5 | . 3 2 Melee Attacks 7 | . 7 . Impact 7 | . 7 . Slashing . | . . . Piercing . | . . . Sneak Attacks . | . . . Combat Hostiles . | . . . Follow-up Attacks . | . . . Damage Inflicted 1821 | 195 1141 485 Guns 1549 | 191 1125 233 Cannons 252 | . . 252 Explosions . | . . . Melee . | . . . Ramming 20 | 4 16 . Kinetic 676 | 80 528 68 Thermal 1125 | 111 597 417 Explosive . | . . . Electromagnetic . | . . . Impact . | . . . Slashing . | . . . Piercing . | . . . Highest Corruption . | . . . Average Corruption . | . . . Corruption Purged . | . . . Corruption Blocked . | . . . Overload Shots . | . . . Overflow Damage . | . . . Projectiles . | . . . Explosions . | . . . Melee . | . . . Knockbacks . | . . . Impact . | . . . Kinetic . | . . . Secondary . | . . . Self-Inflicted Damage . | . . . Shots . | . . . Rammed 3 | . 3 . Targets Rammed 7 | 3 4 . Kicked 4 | 3 1 . Crushed . | . . . Highest Temperature 198 | 45 198 39 Average Temperature 38 | 17 44 22 Received Heat Transfer 405 | . 306 99 Siege Activations . | . . . Martial Activations . | . . . Shielding Activations . | . . . Robots Disrupted . | . . . Combat Hostiles . | . . . Robots Corrupted . | . . . Combat Hostiles . | . . . Parts Fried . | . . . Impact Corruptions . | . . . Robots Melted . | . . . Combat Hostiles . | . . . Parts Melted 8 | 1 3 4 Heat Transferred 3293 | 333 1998 962 Parts Sabotaged . | . . . Parts Stolen . | . . . Parts Stripped . | . . . Power Chain Reactions . | . . . Alert | -11 -10 -10 ------- Run | Yrd Mat Sub Maximum Alert Level . | . . . Low Security (%) 100 | 100 100 . Level 1 . | . . . Level 2 . | . . . Level 3 . | . . . Level 4 . | . . . Level 5 . | . . . High Security . | . . . Max Security . | . . . Peak Influence 151 | 5 151 . Initial . | . . . Average 47 | 2 49 . Influence Increases 559 | 25 484 50 Destroy 0b10 Robot/C 280 | . 260 20 Destroy 0b10 Robot/NC 65 | 25 40 . Destroy Leader 70 | . 70 . Successful Hack 17 | . 17 . Select Force Hacks 60 | . 60 . Destroy Structure 7 | . 7 . Lose Combat Pursuer 60 | . 30 30 Influence Decreases 559 | 25 483 51 Entered New Map 1 | . . 1 Time Decay 518 | 25 473 20 Lost Part 40 | . 10 30 Squads Dispatched 3 | . 3 . Investigation 2 | . 2 . Extermination . | . . . Reinforcement 1 | . 1 . Assault . | . . . Garrison . | . . . Intercept . | . . . Searches Triggered . | . . . Construction Impeded . | . . . Haulers Reinforced . | . . . Active Scanning Responses . | . . . Cargo Convoy Interrupts . | . . . Stealth | -11 -10 -10 --------- Run | Yrd Mat Sub Distress Signals 2 | . 2 . Communications Jammed . | . . . Distress Signals . | . . . Times Spotted 38 | . 27 11 Peak Tracking Total 6 | . 3 6 Tactical Retreats 3 | . 2 1 Traps | -11 -10 -10 ------- Run | Yrd Mat Sub Traps Triggered 3 | . 3 . Indirectly . | . . . Trap Hack Attempts . | . . . Triggered . | . . . Disarmed . | . . . Reprogrammed . | . . . Reused . | . . . Traps Extracted . | . . . Installed . | . . . Triggered . | . . . Machines | -11 -10 -10 ---------- Run | Yrd Mat Sub Machines Disabled . | . . . Max in Single Turn . | . . . Machines Repaired . | . . . Machines Dismantled . | . . . Machines Sabotaged . | . . . Overloaded Fab Kills . | . . . Hacking | -11 -10 -10 --------- Run | Yrd Mat Sub Machines Accessed 10 | . 10 . Terminals 7 | . 7 . Fabricators . | . . . Repair Stations 1 | . 1 . Recycling Units 2 | . 2 . Scanalyzers . | . . . Garrison Access . | . . . Total Hacks 26 | . 26 . Successful 15 | . 15 . Failed 11 | . 11 . Catastrophic 1 | . 1 . Database Lockouts . | . . . Manual 19 | . 19 . Terminals 20 | . 20 . Fabricators . | . . . Repair Stations 2 | . 2 . Recycling Units 4 | . 4 . Scanalyzers . | . . . Garrison Access . | . . . Terminal Hacks 2 | . 2 . Robot Analysis 1 | . 1 . Prototype ID Bank 1 | . 1 . Fabricator Hacks . | . . . Repair Station Hacks 2 | . 2 . Scan Component 1 | . 1 . Repair 1 | . 1 . Recycling Unit Hacks 2 | . 2 . Retrieve Components 2 | . 2 . Scanalyzer . | . . . Garrison Access Hacks . | . . . Unauthorized Hacks 9 | . 9 . Terminals 7 | . 7 . Botnet 2 | . 2 . Skim 5 | . 5 . Fabricators . | . . . Repair Stations . | . . . Recycling Units 2 | . 2 . Tunnel 2 | . 2 . Scanalyzers . | . . . Garrison Access . | . . . Data Cores Recovered . | . . . Used . | . . . Hacking Detections 8 | . 8 . Full Trace Events . | . . . Feedback Events . | . . . Feedback Blocked . | . . . Robot Schematics Acquired . | . . . Robots Built . | . . . Authchips . | . . . Time . | . . . Total Robot Build Rating . | . . . Part Schematics Acquired . | . . . Parts Built . | . . . Authchips . | . . . Time . | . . . Total Part Build Rating . | . . . Parts Repaired 1 | . 1 . Time 26 | . 26 . Parts Recycled . | . . . Recycled Matter . | . . . Retrieved Matter . | . . . Retrieved Components 18 | . 18 . Parts Scanalyzed . | . . . Part Schematics Acquired . | . . . Parts Damaged . | . . . Bothacking | -11 -10 -10 ------------ Run | Yrd Mat Sub Used RIF Installer . | . . . Robots Hacked . | . . . Non-combat . | . . . Combat . | . . . Robot Hacks Applied . | . . . Relay Couplers Released . | . . . Fabnet Peak Effective % . | . . . Robots Rewired . | . . . Allies Hacked . | . . . Hacks Repelled . | . . . Allies | -11 -10 -10 -------- Run | Yrd Mat Sub Total Allies . | . . . Largest Group . | . . . Highest-Rated Group . | . . . Highest-Rated Ally . | . . . Total Orders . | . . . Ally Attacks . | . . . Total Damage . | . . . Kills . | . . . Allies Corrupted . | . . . Allies Melted . | . . . Intel | -11 -10 -10 ------- Run | Yrd Mat Sub Active Infowar (turns) 3346 | 8 1370 1968 Terrain 68 | . . 68 Seismic 3278 | 8 1370 1900 Robot Analysis Total 1 | . 1 . Derelict Logs Recovered . | . . . Drone Launches . | . . . Drone Recoveries . | . . . Exploration | -11 -10 -10 ------------- Run | Yrd Mat Sub Turns Passed 4943 | 107 2715 2121 Spaces Moved 1459 | 46 910 503 Core . | . . . Treads 1069 | . 566 503 Legs 390 | 46 344 . Wheels . | . . . Hover . | . . . Flight . | . . . Fastest Speed 120 | 120 120 320 Average Speed 264 | 120 241 320 Slowest Speed 480 | 120 480 480 Overloaded Moves . | . . . Propulsion Burnouts . | . . . Robots Hopped . | . . . Potential Cave-ins . | . . . Cave-ins Triggered . | . . . Exploration Rate (%) 42 | 3 98 26 Regions Visited 2 Branch Regions 1 Pre-discovered Areas 2 | . 2 . Known Exits Taken 1 | . 1 . Unknown Exits Taken 1 | 1 . . Scrap Searched . | . . . Spaces Dug 4 | . 4 . Terrain Destroyed 6 | . 4 2 Melee 4 | . 4 . Projectile 2 | . . 2 AOE . | . . . Terrain Rammed . | . . . Walls Destroyed . | . . . Machines Disabled . | . . . Actions | -11 -10 -10 --------- Run | Yrd Mat Sub Total 2324 | 71 1286 967 Wait 682 | 2 256 424 Move 1457 | 45 909 503 Hop . | . . . Pick Up 19 | 4 13 2 Fast Attach 4 | . 3 1 Attach 8 | 1 4 3 Detach 2 | . 2 . Swap 31 | 1 19 11 Drop 9 | 2 7 . Fire 98 | 13 62 23 Melee 7 | . 7 . Ram . | . . . Kick 4 | 3 1 . Crush 3 | . 3 . Escape Stasis . | . . . Rewire . | . . . Trap . | . . . Miscellaneous . | . . . Route ------- -11/Scrapyard -10/Materials (discovered 5 exits: [*Mat x3] / *Min / *Sub) -10/Subcaves (discovered 1 exit: [*Rec]) History --------- Turn | Location | Event 1 | -11/Scrapyard | Discovered new exit (range 3) 108 | -11/Scrapyard | Entered Materials 142 | -10/Materials | Discovered new exit (range 16) 302 | -10/Materials | Build established: Mutant 512 | -10/Materials | Discovered new exit (range 15) 1449 | -10/Materials | Discovered new exit (range 4) 1657 | -10/Materials | Discovered new exit (range 4) 1814 | -10/Materials | Learned Storage terminal intel 1841 | -10/Materials | Identified exit to Mines 1841 | -10/Materials | Identified exit to Subcaves 1860 | -10/Materials | Learned 2 Storage zone layouts 1890 | -10/Materials | Learned location of 1 exit from Storage 1932 | -10/Materials | Loaded intel: 11 interactive machine locations 1946 | -10/Materials | Repaired Lgt. Treads 2823 | -10/Materials | Entered Subcaves 2824 | -10/Subcaves | Approached by a straggling Scientist 2846 | -10/Subcaves | Core integrity fell below 50% 2994 | -10/Subcaves | Discovered new exit (range 12) 3016 | -10/Subcaves | Core integrity fell below 20% 3055 | -10/Subcaves | Lost 3 parts (1p1n1u) 3360 | -10/Subcaves | Build established: Scavenger-Mutant 4944 | -10/Subcaves | Destroyed by B2-ERL(R) with Subdweller Laser Last Messages --------------- 03009_ S-10 Pest destroyed. 03017_ Lgt. Ion Engine fries itself beyond repair. 03017_ Ion Engine destroyed. 03018_ Flight Unit fries itself beyond repair. 03024_ Lgt. Treads destroyed. 03026_ S-10 Pest destroyed. 03029_ Sub. Optics melted. 03029_ 6U-8F6(R) destroyed. 03030_ Flight Unit fries itself beyond repair. 03035_ Subatomizers dissect the Machine Analyzer. 03051_ Acquired 10 matter. 03058_ Acquired Sub. Power Source. 03060_ Subatomizers dissect the Machine Analyzer. 03062_ Acquired Sub. Machine Gun. 03063_ Acquired 10 matter. 03073_ Subatomizers dissect the Machine Analyzer. 03075_ Acquired 9 matter. 03084_ Subatomizers dissect the Machine Analyzer. 03791_ Acquired 1 matter. 04938_ Lgt. Treads destroyed. Map ----- +----------------------------------------------------+ | ???????????????????????????????????????????? | | ???????????????????????????????????????????? | | ???????????????????????????????????????????? | | ???????????????????????????????????????????? | | ???????????????????????????????????????????? | | ???????????????????????????????????????????? | | ?????????????????????????? ???????????????? | | ?????????????????????????? #??????????????? | | ?????????????????????????? ??????????????? | | ????????????????????????#? ??????????????? | | ???????????????????????? ? ??????????????? | | ???????????????????????? # ???????????????? | | ???????????????????????? ???????????????? | | ???????????????????????? ???????????????? | | ?????????????????????#### ???????????????? | | ?????????????????????? ????????????????? | | ????????????????????### ????????????????? | | ????????????????????#"#< ????????????????? | | ????????????????????? ????????????????? | | ??????????????????????#< #????????????????? | | ?????????????????????## #????????????????? | | ?????????????????????# ##???????????????? | | ?????????????????????# ##??????????????? | | ?????????????????????# R ##?????????????? | | ?????????????????????## #?????????????? | | ??????????????????????## @####?????????????? | | ??????????????????????# #???????????????? | | ??????????????????????## #???????????????? | | ??????????????????????# #???????????????? | | ?????????????????????### #???????????????? | | ???????????????????###^ ###?????????????? | | ???????????????????# #?????????????? | | ????????????????#### ^ #?????????????? | | ????????????????# ## #?????????????? | | ????????####?####^ ^ #? #?????????????? | | ???????## ## ^ ####?###?????????????? | | ???????# ##????????????????????? | | ????????# ##?????????????????????? | | ????????## #??????????????????????? | | ????????## #??????????????????????? | | ??? "#?# #####??????????????????? | | "#?## ^ #??????????????????? | | ""#??####^ #??????????????????? | | <#???## ^ ## #??????????????????? | | ""#????# ## ##??????????????????? | | "#????## ^ ## #???????????????????? | | ??? "#?????# ### #???????????????????? | | ????????????# #?# #???????????????????? | | ????????????# ##?# #####???????????????? | | ??########### #??# #???????????????? | +----------------------------------------------------+ Best States ------------- Heat Dissipation 39 Energy Generation 15 Energy Capacity 250 Matter Stores 300 Matter Capacity 300 Sight Range 16 Terrain Scan Range 16 Terrain Scan Density 10 Armor Coverage 150 Core Shielding 20 Evasion (%) 55 Recoil Reduction 2 Item Schematics ----------------- None Robot Schematics ------------------ None Fabricated ------------ Nothing Repaired ---------- Lgt. Treads | 37% | -10/Materials Alien Tech Used ----------------- None Achievements -------------- None Challenges ------------ None Game ------ Seed FlyingLayeredSword Manual? 0 Play Time 00:20:12 Cumulative 418.7 hours Start 2025.06.03 @ 23:42:18 End 2025.06.03 @ 23:58:36 Sessions 1 Manual Loads 0 Difficulty Rogue Special Mode None Game No. 207 Rogue 144 Adventurer 63 Explorer 0 Win Type - Total 9 Types 8/0/0/1/0/0/0/0/0/0 Lore% 86 Gallery% 78 Achievement% 66 Wizard Run 0 Options --------- Layout 0 ASCII 0 Keyboard 1 Movement Numpad Keybinds 0 Fullscreen 1 Font 18/Terminus Map View 76x50 Zoom Use 0% Tactical HUD 1 Map Filters NONE Filters NONE Steam 1 RUN: 0159c4fe-7f86-4e20-801d-579952afb9f4